Cogmind - Beta 13 @@@ ROGUE MODE // 2024.05.29 @ 12:48:00 Player: Some Pennies Result: Destroyed by D-53 Grenadier with Mini Grenade Launcher Performance ------------- Evolutions (0) 0 Regions Visited (2) 400 Robots Destroyed (19) 95 Value Destroyed (355) 355 Prototype IDs (5) 100 Alien Tech Used (0) 0 Bonus (39) 39 TOTAL SCORE: 989 Bonus ------- Follower Combat Kills 39 Cogmind --------- Core Integrity 0/250 Matter 278/300 Energy 98/100 System Corruption 2% Temperature Cool (0) Movement Core (50) Location -10/Mines Parts ------- > --- POWER (1) -------- (None) > --- PROPULSION (2) --- (None) > --- UTILITY (2) ------ Targeting Computer Targeting Computer > --- WEAPON (2) ------- Assault Rifle Light Assault Rifle > --- INVENTORY (5) ---- Light Nuclear Core Improved Heat Sink Medium Storage Unit Seismic Detector Mining Claw Peak State ------------ > --- POWER ------------ Light Nuclear Core > --- PROPULSION ------- (None) > --- UTILITY ---------- Targeting Computer Targeting Computer > --- WEAPON ----------- Assault Rifle Light Assault Rifle > --- INVENTORY -------- Light Ion Engine Heat Sink Small Storage Unit Seismic Detector Mining Laser [Rating: 7] Favorites ----------- Power Light Nuclear Core Power Core Light Nuclear Core Propulsion Flight Unit Flight Unit Flight Unit Utility Targeting Computer Processor Targeting Computer Weapon Light Assault Rifle Energy Cannon Beam Cannon Ballistic Gun Light Assault Rifle Slashing Weapon Mining Claw Build | -11 -10 -10 ------- Run | Yrd Mat Min Slots Evolved . | . . . Power . | . . . Propulsion . | . . . Utility . | . . . Weapon . | . . . Parts Attached 14 | 2 11 1 Power 1 | . 1 . Engine . | . . . Core 1 | . 1 . Reactor . | . . . Propulsion 1 | . 1 . Treads . | . . . Leg . | . . . Wheel . | . . . Hover . | . . . Flight 1 | . 1 . Utility 2 | . 2 . Device . | . . . Storage . | . . . Processor 2 | . 2 . Hackware . | . . . Protection . | . . . Artifact . | . . . Weapon 10 | 2 7 1 Energy Gun . | . . . Energy Cannon 1 | . 1 . Ballistic Gun 8 | 2 5 1 Ballistic Cannon . | . . . Launcher . | . . . Special Weapon . | . . . Impact Weapon . | . . . Slashing Weapon 1 | . 1 . Piercing Weapon . | . . . Special Melee Weapon . | . . . Unidentified Prototypes . | . . . Parts Lost 1 | . 1 . Power . | . . . Propulsion 1 | . 1 . Utility . | . . . Weapon . | . . . Highest Loss Streak 1 | . 1 . To Critical Strikes . | . . . Average Slot Usage (%) 55 | . 54 57 Processor 27 | . 27 28 Energy Cannon 2 | . 4 . Ballistic Gun 17 | . 19 14 Slashing Weapon 5 | . 2 13 Naked Turns . | . . . Heaviest Build 8 | 3 8 3 Greatest Support 4 | 3 4 3 Greatest Overweight (x) 2 | . 2 . Average Overweight (x) . | . . . Largest Inventory Capacity 5 | 5 5 5 Average Capacity 5 | 5 5 5 Most Carried 5 | 5 5 5 Average Carried 4 | 3 4 5 Final Capacity 5 | 5 5 5 Final Carried 5 | 5 5 5 Class Distribution -------------------- 100% | Mutant Dominant Class ---------------- Mutant | -10/Materials Mutant | -10/Mines Resources | -11 -10 -10 ----------- Run | Yrd Mat Min Matter Collected 562 | 344 195 23 Remotely . | . . . Salvage Created 718 | 179 464 75 Parts 40 | 14 24 2 Haulers Intercepted 2 | . 2 . Recyclers Shooed 2 | 2 . . Parts Field Recycled . | . . . Retrieved Matter . | . . . Parts Self-Destructed . | . . . Prevented . | . . . Kills | -11 -10 -10 ------- Run | Yrd Mat Min Combat Hostiles Destroyed 9 | . 9 . Guns 6 | . 6 . Cannons 3 | . 3 . Classes Destroyed 7 | 3 4 . Worker 1 | 1 . . Tunneler 4 | 4 . . Hauler 2 | . 2 . Recycler 2 | 1 . 1 Watcher 1 | . 1 . Swarmer 2 | . 2 . Grunt 7 | . 7 . Best Kill Streak 5 | 3 5 1 Combat Bots Only 4 | . 4 . Max Kills in Single Turn 1 | 1 1 1 Gunslinging . | . . . Exploded . | . . . Melee . | . . . Uniques/NPCs Destroyed . | . . . Combat | -11 -10 -10 -------- Run | Yrd Mat Min Hostile Shots Fired 42 | . 36 6 Missed 8 | . 7 1 Damage Taken 459 | . 324 135 Core 264 | . 166 98 Absorbed by Shields . | . . . Core Remaining (%) 100 | 100 . . Volleys Fired 74 | 31 40 3 Largest 2 | 2 2 2 Hottest 80 | 40 80 40 Shots Fired 140 | 62 72 6 Gun 124 | 62 56 6 Cannon 16 | . 16 . Launcher . | . . . Special . | . . . Kinetic 124 | 62 56 6 Thermal 16 | . 16 . Explosive . | . . . Electromagnetic . | . . . Robot Hit Streak 11 | 11 7 3 Robot Miss Streak 4 | 4 3 2 Penetration Max . | . . . Secondary Targets 3 | . 3 . Max Gunslinging Chain 1 | . 1 . Shots Hit Robots 93 | 41 47 5 Core Hits 32 | 9 22 1 Critical Kills . | . . . Critical Parts Destroyed . | . . . Critical Strikes . | . . . Melee Attacks 4 | . 2 2 Impact . | . . . Slashing 4 | . 2 2 Piercing . | . . . Sneak Attacks 2 | . . 2 Combat Hostiles . | . . . Follow-up Attacks . | . . . Damage Inflicted 1122 | 419 577 126 Guns 825 | 419 377 29 Cannons 200 | . 200 . Explosions . | . . . Melee 97 | . . 97 Ramming . | . . . Kinetic 825 | 419 377 29 Thermal 200 | . 200 . Explosive . | . . . Electromagnetic . | . . . Impact . | . . . Slashing 97 | . . 97 Piercing . | . . . Highest Corruption 2 | . 2 2 Average Corruption 2 | . 2 2 Corruption Purged . | . . . Corruption Blocked . | . . . Effects 3 | . . 3 Message Errors 1 | . . 1 Matter Fused 1 | . . 1 Heat Flow Errors 1 | . . 1 Overload Shots . | . . . Overflow Damage 20 | . . 20 Projectiles . | . . . Explosions . | . . . Melee 20 | . . 20 Knockbacks . | . . . Impact . | . . . Kinetic . | . . . Secondary . | . . . Self-Inflicted Damage . | . . . Shots . | . . . Rammed . | . . . Targets Rammed . | . . . Kicked . | . . . Crushed . | . . . Highest Temperature 252 | . 133 252 Average Temperature 55 | . 42 127 Received Heat Transfer 183 | . 168 15 Siege Activations . | . . . Robots Corrupted . | . . . Combat Hostiles . | . . . Parts Fried . | . . . Impact Corruptions . | . . . Robots Melted . | . . . Combat Hostiles . | . . . Parts Melted 1 | . 1 . Heat Transferred 407 | . 407 . Parts Sabotaged . | . . . Parts Stolen . | . . . Parts Stripped . | . . . Power Chain Reactions . | . . . Alert | -11 -10 -10 ------- Run | Yrd Mat Min Peak Influence 307 | 30 307 161 Initial 53 | . 19 53 Average 121 | 11 157 103 Maximum Alert Level 1 | . 1 . Low Security (%) 82 | 100 71 100 Level 1 17 | . 28 . Level 2 . | . . . Level 3 . | . . . Level 4 . | . . . Level 5 . | . . . High Security . | . . . Max Security . | . . . Squads Dispatched 2 | . 2 . Investigation 2 | . 2 . Extermination . | . . . Reinforcement . | . . . Assault . | . . . Garrison . | . . . Intercept . | . . . Searches Triggered . | . . . Construction Impeded . | . . . Haulers Reinforced . | . . . Active Scanning Responses . | . . . Cargo Convoy Interrupts . | . . . Stealth | -11 -10 -10 --------- Run | Yrd Mat Min Distress Signals 1 | . . 1 Communications Jammed . | . . . Distress Signals . | . . . Times Spotted 18 | . 13 5 Peak Tracking Total 3 | . 3 3 Tactical Retreats 3 | . 1 2 Traps | -11 -10 -10 ------- Run | Yrd Mat Min Traps Triggered 2 | . 2 . Indirectly . | . . . Trap Hack Attempts . | . . . Triggered . | . . . Disarmed . | . . . Reprogrammed . | . . . Reused . | . . . Traps Extracted . | . . . Installed . | . . . Triggered . | . . . Machines | -11 -10 -10 ---------- Run | Yrd Mat Min Machines Disabled 1 | . . 1 Max in Single Turn . | . . . Machines Repaired . | . . . Machines Dismantled . | . . . Machines Sabotaged . | . . . Overloaded Fab Kills . | . . . Hacking | -11 -10 -10 --------- Run | Yrd Mat Min Machines Accessed 7 | . 7 . Terminals 6 | . 6 . Fabricators . | . . . Repair Stations . | . . . Recycling Units 1 | . 1 . Scanalyzers . | . . . Garrison Access . | . . . Total Hacks 18 | . 18 . Successful 7 | . 7 . Failed 11 | . 11 . Catastrophic . | . . . Database Lockouts . | . . . Manual 6 | . 6 . Terminals 17 | . 17 . Fabricators . | . . . Repair Stations . | . . . Recycling Units 1 | . 1 . Scanalyzers . | . . . Garrison Access . | . . . Terminal Hacks 5 | . 5 . Robot Analysis 2 | . 2 . Prototype ID Bank 2 | . 2 . Locate Traps 1 | . 1 . Fabricator Hacks . | . . . Repair Station Hacks . | . . . Recycling Unit Hacks . | . . . Scanalyzer . | . . . Garrison Access Hacks . | . . . Unauthorized Hacks 2 | . 2 . Terminals 1 | . 1 . Botnet 1 | . 1 . Fabricators . | . . . Repair Stations . | . . . Recycling Units 1 | . 1 . Tunnel 1 | . 1 . Scanalyzers . | . . . Garrison Access . | . . . Data Cores Recovered . | . . . Used . | . . . Hacking Detections 6 | . 6 . Full Trace Events 1 | . 1 . Feedback Events . | . . . Feedback Blocked . | . . . Robot Schematics Acquired . | . . . Robots Built . | . . . Authchips . | . . . Time . | . . . Total Robot Build Rating . | . . . Part Schematics Acquired . | . . . Parts Built . | . . . Authchips . | . . . Time . | . . . Total Part Build Rating . | . . . Parts Repaired . | . . . Time . | . . . Parts Recycled . | . . . Recycled Matter . | . . . Retrieved Matter . | . . . Retrieved Components . | . . . Parts Scanalyzed . | . . . Part Schematics Acquired . | . . . Parts Damaged . | . . . Bothacking | -11 -10 -10 ------------ Run | Yrd Mat Min Used RIF Installer . | . . . Robots Hacked . | . . . Non-combat . | . . . Combat . | . . . Robot Hacks Applied . | . . . Relay Couplers Released . | . . . Fabnet Peak Effective % . | . . . Robots Rewired . | . . . Allies Hacked . | . . . Hacks Repelled . | . . . Allies | -11 -10 -10 -------- Run | Yrd Mat Min Total Allies 2 | . . 2 Largest Group 2 | . . 2 Highest-Rated Group 47 | . . 47 Highest-Rated Ally 31 | . . 31 Total Orders . | . . . Ally Attacks 17 | . . 17 Total Damage 189 | . . 189 Kills 3 | . . 3 Allies Corrupted . | . . . Allies Melted . | . . . Intel | -11 -10 -10 ------- Run | Yrd Mat Min Robot Analysis Total 2 | . 2 . Derelict Logs Recovered 1 | . . 1 Drone Launches . | . . . Drone Recoveries . | . . . Exploration | -11 -10 -10 ------------- Run | Yrd Mat Min Turns Passed 822 | 130 487 205 Spaces Moved 1098 | 68 647 383 Core 1091 | 68 640 383 Treads . | . . . Legs . | . . . Wheels . | . . . Hover . | . . . Flight 7 | . 7 . Fastest Speed 40 | 50 40 50 Average Speed 51 | 50 51 50 Slowest Speed 150 | 50 150 50 Overloaded Moves . | . . . Propulsion Burnouts . | . . . Robots Hopped . | . . . Cave-ins Triggered . | . . . Exploration Rate (%) 58 | 3 95 76 Regions Visited 2 Branch Regions 1 Pre-discovered Areas 2 | . 1 1 Known Exits Taken . | . . . Unknown Exits Taken 2 | 1 1 . Scrap Searched 2 | . . 2 Spaces Dug 1 | . 1 . Terrain Destroyed 1 | . 1 . Melee 1 | . 1 . Projectile . | . . . AOE . | . . . Terrain Rammed . | . . . Walls Destroyed . | . . . Machines Disabled . | . . . Actions | -11 -10 -10 --------- Run | Yrd Mat Min Total 1224 | 107 728 389 Wait 16 | . 16 . Move 1096 | 67 646 383 Hop . | . . . Pick Up 11 | 7 4 . Fast Attach 9 | . 9 . Attach 2 | 2 . . Detach 1 | . 1 . Swap 3 | . 2 1 Drop 8 | . 8 . Fire 74 | 31 40 3 Melee 4 | . 2 2 Ram . | . . . Kick . | . . . Crush . | . . . Escape Stasis . | . . . Rewire . | . . . Trap . | . . . Miscellaneous . | . . . Route ------- -11/Scrapyard -10/Materials (discovered 5 exits: [*Mat x3] / [*Min x2]) -10/Mines (discovered 2 exits: [*Mat x2]) History --------- Turn | Location | Event 4 | -11/Scrapyard | Discovered new exit (range 16) 131 | -11/Scrapyard | Entered Materials 242 | -10/Materials | Discovered new exit (range 9) 263 | -10/Materials | Discovered new exit (range 6) 330 | -10/Materials | Build established: Mutant 367 | -10/Materials | Discovered new exit (range 10) 389 | -10/Materials | Core integrity fell below 50% 481 | -10/Materials | Discovered new exit (range 8) 493 | -10/Materials | Discovered new exit (range 14) 618 | -10/Materials | Entered Mines 619 | -10/Mines | Assembled infested the area 624 | -10/Mines | Assisted by a Guerilla fighting off Assembled 653 | -10/Mines | Discovered new exit (range 8) 680 | -10/Mines | Discovered new exit (range 5) 700 | -10/Mines | Found a hidden stash of uninstalled traps 818 | -10/Mines | Core integrity fell below 20% 823 | -10/Mines | Destroyed by D-53 Grenadier with Mini Grenade Launcher Last Messages --------------- here! 00715_ System corrupted: Heat flow error (+277). 00746_ Searching scrap... 00746_ Found Mining Laser. 00746_ Found Hcp. Matter Pod. 00746_ Found Sml. Storage Unit. 00746_ Found 29 Matter. 00747_ Acquired 14 matter. 00748_ System corrupted: Matter fused (-9). 00749_ Sneak attack on R-06 Scavenger. 00749_ R-06 Scavenger destroyed. 00752_ Acquired 9 matter. 00753_ Searching scrap... 00753_ Found Aluminum Leg. 00753_ Found Lgt. Treads. 00753_ Found 28 Matter. 00755_ Sneak attack on T-07 Excavator. 00755_ Destroyed Mining Laser. 00755_ Destroyed Seismic Detector. 00781_ K-01 Serf collects debris. Map ----- +----------------------------------------------------+ | ??# ##?## #### ##?????## ######???? | | ??# ##?##### #??????####????????? | | ??# ##????## #??????????????????? | | ??# #?????## #########??????########????? | | ??# & #??????## ##??????????????# #????? | | ??#& & #???????# ##???????????????# !!!! #????? | | ??# & #???????# #????????????????# !!!! #????? | | ??# #???????# ###??????????????# !!!! #????? | | ??# ##???????# #??????????????# !!!! #????? | | ??# ##????????### ######?????????# ##???? | | ??# #???????????# !%#?????????## ##??? | | ??# #???????????######!#??????#### ##?? | | ??# #????????????????#|#?????## ### ##? | | ??# #??????####?????# =####### ##?## #? | | ??# #????### ##????=%!%=%= ##???## #? | | ??# ###### ##???==######### ##?????####? | | ??# #### %##??????#####??????????? | | ??# ! #????????????????????? | | ??######### ## ##?????????????????????? | | ??????????# ## #??# #??????????????????????? | | ??????????# ### ##??# #??????????????????????? | | ??????????# #?######## ###????????????????????? | | ??????????# #?????# d ##???????????????????? | | ??????????# #?????# #???# ????????????? | | ??????????# #####?# #?## ???????????? | | ??????????# ### @ ## #????????? | | ?????????## ## #????????? | | ?????????# ## ???????? | | ?????????# < #### t ???????? | | ?????????### ##??## ##????????? | | ???????????# ##### #?????????? | | ????????#### #?????????? | | ????????# #?????????? | | ????????# # #### ##????????? | | ????????# #### #??# k #????????? | | ????????##???# #??# ##???????? | | ?????????????# #??## k #######?? | | ?????????????# #???## """ ## ##? | | ?????????????#%#????## """ ## | | ????????????? ?????## """ | | ?????????????" ??????## | | ?????????????""%???????### ###### | | ?????????????"" ?????????# # #### | | ????????????? ?????????# ## | | ???????????????#?????##### ### | | ?????????????????????# ### #### | | ?????????????????????# ## # #????< | | ?????????????????????# ###### # #?????? | | ?????????????????????# #????# # #??????? | | ?????????????????????# #????# # #??????? | +----------------------------------------------------+ Best States ------------- Heat Dissipation 25 Energy Generation 5 Energy Capacity 100 Matter Stores 300 Matter Capacity 300 Sight Range 16 Terrain Scan Density 10 Evasion (%) 62 Targeting Accuracy 10 Item Schematics ----------------- None Robot Schematics ------------------ None Fabricated ------------ Nothing Alien Tech Used ----------------- None Achievements -------------- None Challenges ------------ None Game ------ Seed CryofiberEtherialCasing Manual? 0 Play Time 00:12:29 Cumulative 106.5 hours Start 2024.05.29 @ 12:36:54 End 2024.05.29 @ 12:48:00 Sessions 1 Manual Loads 0 Difficulty Rogue Special Mode None Game No. 100 Rogue 95 Adventurer 5 Explorer 0 Win Type - Total 1 Types 1/0/0/0/0/0/0/0/0 Lore% 46 Gallery% 58 Achievement% 43 Wizard Run 0 Options --------- Layout 2 ASCII 0 Keyboard 0 Movement Mouse Keybinds 0 Fullscreen 2 Font 24/Smallcaps Map View 50x44 Zoom Use 0% Tactical HUD 1 Map Filters NONE Filters NONE Steam 1 RUN: 473979fd-0a77-44db-9243-e3f90fec18aa